[Event "45th FIDE Olympiad 2024"]
[Site "Budapest"]
[Date "2024.09.15"]
[Round "5.50"]
[White "Sarana, Alexey"]
[Black "Fier, Alexandr"]
[Result "1-0"]
[ECO "D46"]
[WhiteElo "2713"]
[BlackElo "2551"]
[Annotator "TA"]
[PlyCount "97"]
[EventDate "2024.09.05"]
[EventType "team-tourn"]
[EventCountry "HUN"]
[SourceTitle "playchess.com"]
[Source "ChessBase"]
[SourceQuality "1"]
[WhiteTeam "Serbia"]
[BlackTeam "Brazil"]
[WhiteTeamCountry "SRB"]
[BlackTeamCountry "BRA"]
[TimeControl "40/5400+30:1800+30"]

{[%evp 20,97,20,17,45,37,39,46,39,31,35,36,39,37,32,45,50,51,62,61,57,37,67,66,66,63,92,87,83,79,74,91,111,115,134,59,63,37,38,10,22,19,21,22,18,0,65,26,66,46,47,57,65,68,111,100,99,62,80,78,89,77,188,191,205,213,29941,29963,29940,12056,6253,1657,6220,6219,6099,5210,29982,29983,29983,29984]} 1. d4 {[%emt 0:00:04]} d5 {[%emt 0:00:05]} 2. c4 {[%emt 0:00:06]} c6 {[%emt 0:00:04]} 3. Nf3 {[%emt 0:00:23]} Nf6 {[%emt 0:00:04]} 4. Nc3 {[%emt 0:00:41]} e6 {[%emt 0:00:05][%cal Be7e6,Be6e5,Be5e4][%mdl 32]} 5. e3 {[%emt 0:00:24]} Nbd7 {[%emt 0:00:04]} 6. Bd3 {[%emt 0:00:12]} dxc4 {[%emt 0:00:04]} 7. Bxc4 {[%emt 0:00:03]} Bd6 {[%emt 0:00:07]} 8. Qc2 {[%emt 0:01:27]} O-O {[%emt 0:00:06]} 9. O-O {[%emt 0:03:53]} e5 {[%emt 0:00:05]} 10. a3 {[%emt 0:03:38]} Qe7 {[%emt 0:00:38]} 11. h3 {[%emt 0:00:18]} e4 {[%emt 0:01:02]} 12. Ng5 {[%emt 0:01:21][%cal Rg5e4]} Nb6 {[%emt 0:00:04][%cal Bd7b6,Bb6d5,Bd5c3][%mdl 32]} 13. Ba2 {[%emt 0:00:07][%cal Rg5e4]} Bf5 {[%emt 0:00:06] White is slightly better.} 14. f3 {[%emt 0:00:10]} Nbd5 {[%emt 0:01:24]} 15. Ngxe4 {[%emt 0:07:03]} Nxc3 {[%emt 0:00:33]} 16. Nxf6+ {[%emt 0:00:04]} Qxf6 {[%emt 0:00:04]} 17. Qxc3 {[%emt 0:00:06] e4 would now be deadly.} c5 {[%emt 0:00:02]} 18. dxc5 {[%emt 0:01:28]} Be5 {[%emt 0:00:04]} 19. Qe1 {[%emt 0:07:52]} Qg6 {[%emt 0:08:52]} 20. f4 {[%emt 0:02:24][%cal Bf3f4,Bf4f5][%mdl 32]} Be4 {[%emt 0:04:06][%csl Ge4][%cal Rg6g2]} 21. Qf2 {[%emt 0:01:37]} (21. fxe5 $2 Qxg2#) 21... Bf6 {[%emt 0:02:05][%cal Of6h4]} 22. f5 $1 {[%emt 0:04:57]} Qh6 {[%emt 0:25:27]} 23. Bb1 {[%emt 0:06:19]} Rfe8 {[%emt 0:00:19]} 24. Bxe4 {[%emt 0:00:54]} Rxe4 {[%emt 0:00:05]} 25. Ra2 {[%emt 0:00:24]} Rae8 {[%emt 0:03:23]} 26. b4 {[%emt 0:01:28]} Bg5 {[%emt 0:00:02][%cal Oh6c6]} 27. Re2 {[%emt 0:08:07]} ({Better is} 27. b5 $16) 27... Qc6 $14 {[%emt 0:02:55]} 28. Rd1 {[%emt 0:07:53]} a5 {[%emt 0:01:00]} 29. Qe1 {[%emt 0:03:46]} ({Much weaker is} 29. bxa5 Qxc5 30. a6 (30. Rc2 Qxa5 31. Qf3 h6 $15) 30... bxa6 $15) 29... axb4 {[%emt 0:07:53]} 30. axb4 {[%emt 0:00:02]} Qb5 {[%emt 0:00:14]} 31. Bd2 {[%emt 0:00:41][%cal Bc1d2,Bd2c3,Bc3d4][%mdl 32]} h6 {[%emt 0:00:47]} 32. Kh1 {[%emt 0:07:00]} R8e5 {[%emt 0:10:43]} (32... b6 $11) 33. Bc3 {[%emt 0:19:03]} Rxf5 {[%emt 0:00:04]} 34. Qd2 {[%emt 0:02:20]} Qc4 {[%emt 0:07:16]} 35. Qc2 {[%emt 0:03:07]} Qe6 {[%emt 0:15:40]} 36. Bd4 {[%emt 0:00:08]} Bh4 {[%emt 0:06:55]} 37. b5 {[%emt 0:02:33] Threatens to win with c6.} Bg3 {[%emt 0:00:04]} 38. c6 {[%emt 0:00:40]} bxc6 {[%emt 0:00:03]} 39. Qxc6 {[%emt 0:01:09]} Rd5 {[%emt 0:04:38] [#]} 40. Red2 $1 {[%emt 0:01:30] Qa8+ is the strong threat.} Rd6 {[%emt 0:02:46]} (40... Qxc6 $16 41. bxc6 Rd8) 41. Qa8+ $18 {[%emt 0:30:23]} Kh7 {[%emt 0:30:07][%cal Bg8h7,Bh7g6,Bg6f5][%mdl 32] [#]} 42. Bxg7 $1 {[%emt 0:01:33]} Rh4 $2 {[%emt 0:00:00]} (42... Kxg7 $18 43. Rxd6 Bxd6 44. Rxd6 Qe5) 43. Qh8+ {[%emt 0:00:00]} Kg6 {[%emt 0:00:00]} 44. Rxd6 {[%emt 0:00:00]} Bxd6 {[%emt 0:00:00] [#]} 45. Rxd6 $1 {[%emt 0:00:00]} Qxd6 {[%emt 0:00:00]} 46. Bd4 {[%emt 0:00:00] And now b6 would win.} Kf5 {[%emt 0:00:00]} 47. b6 {[%emt 0:00:00]} Rxh3+ {[%emt 0:00:00]} 48. gxh3 {[%emt 0:00:00]} Qc6+ {[%emt 0:00:00]} 49. Kh2 {[%emt 0:00:00] Weighted Error Value: White=0.07 (flawless) /Black=0.46.  Mistake:       	White=1     	Black=3      Inaccurate:     	White=4     	Black=4      OK:         	White=11    	Black=9      Best:        	White=5     	Black=1      Strong:       	White=3     	---} ({Not} 49. Kg1 Qc1+ 50. Kg2 Qd2+ 51. Kf1 Qd1+ 52. Kf2 Qd2+ 53. Kf3 Qd1+ 54. Kf2 Qd2+ 55. Kg3 Qe1+ 56. Kf3 Qd1+ (56... Qf1+ 57. Kg3 $11) 57. Kf2 $11) 1-0

[Event "45th FIDE Olympiad 2024"]
[Site "Budapest"]
[Date "2024.09.15"]
[Round "5.50"]
[White "Winston Gerald, Mansfield Thomas"]
[Black "Espirito Santo, Waldyr"]
[Result "1/2-1/2"]
[ECO "C01"]
[WhiteElo "1950"]
[BlackElo "1926"]
[PlyCount "122"]
[EventDate "2024.09.05"]
[EventType "team-tourn"]
[EventCountry "HUN"]
[WhiteTeam "Sierra Leone"]
[BlackTeam "Sao Tome and Principe"]
[WhiteTeamCountry "SIE"]
[BlackTeamCountry "SAO"]
[TimeControl "40/5400+30:1800+30"]

1. e4 e6 2. d4 d5 3. exd5 exd5 4. Bd3 Bd6 5. Nf3 Nc6 6. c3 Nge7 7. Qc2 Bg4 8. Nbd2 Qd7 9. h3 Bf5 10. a3 Bxd3 11. Qxd3 Ng6 12. Nf1 Nce7 13. g3 f6 14. Ne3 c6 15. Bd2 O-O-O 16. O-O-O Kb8 17. Kb1 Qc7 18. b4 Nf8 19. c4 dxc4 20. Nxc4 Nd5 21. Rhe1 Ng6 22. h4 Rhe8 23. h5 Nf8 24. Nh4 Rxe1 25. Rxe1 Qf7 26. Nxd6 Rxd6 27. Qf5 g6 28. hxg6 hxg6 29. Qd3 Rd8 30. Bh6 g5 31. Nf5 Ne6 32. Kb2 Qd7 33. Qe4 Re8 34. Qf3 Rh8 35. Qe4 Nec7 36. Qf3 Re8 37. Re4 Nb6 38. Ne3 Ncd5 39. Nxd5 Nxd5 40. Rxe8+ Qxe8 41. Qf5 Qe2+ 42. Qc2 Qe8 43. Qc5 Qe2+ 44. Qc2 Qxc2+ 45. Kxc2 Kc8 46. Kd3 Kd7 47. Bf8 Ke6 48. a4 b5 49. axb5 cxb5 50. g4 a6 51. Ke4 Nc3+ 52. Kd3 Nd1 53. Ke2 Nb2 54. Ke3 Nc4+ 55. Ke4 Nb6 56. Bc5 Nd5 57. Bf8 Nf4 58. Bc5 Nd5 59. f3 Nc3+ 60. Kd3 Nd5 61. Ke4 Nc3+ 1/2-1/2

[Event "45th FIDE Olympiad 2024"]
[Site "Budapest"]
[Date "2024.09.15"]
[Round "5.51"]
[White "Quintiliano, Renato R."]
[Black "Markus, Robert"]
[Result "1-0"]
[ECO "E94"]
[WhiteElo "2499"]
[BlackElo "2586"]
[Annotator "TA"]
[PlyCount "79"]
[EventDate "2024.09.05"]
[EventType "team-tourn"]
[EventCountry "HUN"]
[SourceTitle "playchess.com"]
[Source "ChessBase"]
[SourceQuality "1"]
[WhiteTeam "Brazil"]
[BlackTeam "Serbia"]
[WhiteTeamCountry "BRA"]
[BlackTeamCountry "SRB"]
[TimeControl "40/5400+30:1800+30"]

{[%evp 17,79,69,70,65,52,29,31,33,52,31,48,34,41,47,41,48,53,42,70,70,72,58,89,0,87,-8,-7,-35,-37,-32,57,47,64,50,54,35,112,23,88,69,159,152,159,151,161,143,200,197,199,208,194,195,197,197,231,227,250,243,387,393,394,322,527,490]} 1. d4 {[%emt 0:00:04]} Nf6 {[%emt 0:00:06]} 2. c4 {[%emt 0:00:14]} d6 {[%emt 0:00:06]} 3. Nf3 {[%emt 0:00:13]} Nbd7 {[%emt 0:00:07]} 4. Nc3 {[%emt 0:00:54]} e5 {[%emt 0:00:08]} 5. e4 {[%emt 0:00:58]} g6 {[%emt 0:00:07]} 6. Be2 {[%emt 0:00:10]} Bg7 {[%emt 0:00:07]} 7. O-O {[%emt 0:00:08]} O-O {[%emt 0:00:07]} 8. Be3 {[%emt 0:00:19]} h6 {[%emt 0:00:06]} 9. dxe5 {[%emt 0:05:06]} dxe5 {[%emt 0:00:09]} 10. h3 {[%emt 0:00:15]} c6 {[%emt 0:01:59]} 11. Qc2 {[%emt 0:04:47]} Qe7 {[%emt 0:11:26]} 12. Rad1 {[%emt 0:01:04] White is slightly better.} Nc5 {[%emt 0:10:16][%cal Bd7c5,Bc5e6,Be6d4][%mdl 32]} 13. Rfe1 {[%emt 0:01:40]} Nh7 {[%emt 0:09:02]} 14. Qd2 {[%emt 0:26:54]} h5 {[%emt 0:01:32]} 15. Qd6 {[%emt 0:07:21]} Qxd6 {[%emt 0:00:14]} 16. Rxd6 {[%emt 0:00:06]} Ne6 {[%emt 0:00:18]} 17. c5 {[%emt 0:05:58]} Re8 {[%emt 0:03:22]} 18. Bc4 {[%emt 0:01:15]} Nhf8 {[%emt 0:12:16]} 19. Red1 {[%emt 0:05:45]} Re7 {[%emt 0:07:03]} 20. Nh4 {[%emt 0:09:36] White is much more active.} (20. b4 $16) 20... Rc7 {[%emt 0:08:57]} (20... Bf6 $11 21. Nf3 h4) 21. g3 {[%emt 0:05:49]} ({Better is} 21. b4 $16) 21... Nd4 $11 {[%emt 0:05:41]} 22. Nxg6 {[%emt 0:09:44]} Nxg6 {[%emt 0:08:40]} 23. Rxg6 {[%emt 0:00:07] [#] Rxd4 would now be deadly.} Kh7 {[%emt 0:00:33]} (23... Be6 $1 $15 24. Rxe6 Nxe6) 24. Rd6 $36 {[%emt 0:02:09][%mdl 2048] Black is under pressure.} Bxh3 {[%emt 0:00:06]} 25. Bxd4 {[%emt 0:01:20]} exd4 {[%emt 0:00:20]} 26. Ne2 {[%emt 0:00:26]} Re8 {[%emt 0:08:20]} ({Black should try} 26... Be5 $14) 27. Nxd4 {[%emt 0:01:28]} (27. f3 $16) 27... Kg8 {[%emt 0:00:45]} (27... Bf8 $11) 28. Nf5 {[%emt 0:03:36]} Rxe4 {[%emt 0:04:22]} (28... Bxf5 $1 $14 29. exf5 Bxb2) 29. Rd8+ $16 {[%emt 0:00:08]} Bf8 {[%emt 0:00:14]} 30. Nd6 {[%emt 0:00:06]} Re5 {[%emt 0:01:04][%cal Ob7b5]} 31. b4 {[%emt 0:01:45][%cal Bb2b4,Bb4c5][%mdl 32]} Rce7 {[%emt 0:02:09]} (31... a5 $16) 32. Rd4 $18 {[%emt 0:00:23]} b6 {[%emt 0:01:24]} 33. Rf4 {[%emt 0:01:03]} Be6 {[%emt 0:00:10]} 34. Bxe6 {[%emt 0:00:22]} R5xe6 {[%emt 0:00:07]} 35. Rc8 {[%emt 0:02:02]} bxc5 {[%emt 0:01:24]} 36. bxc5 {[%emt 0:00:06]} Rd7 {[%emt 0:00:07]} 37. Ne8 {[%emt 0:02:00] Hoping for Nf6+.} (37. Rxc6 Bxd6 38. cxd6 (38. Rxd6 Rdxd6 39. cxd6 Rxd6 $14) 38... Rexd6 39. Rxd6 Rxd6 $14) 37... Rd1+ {[%emt 0:01:44]} (37... f5 $142 38. Nd6 (38. Rxf5 Rf7 $18) 38... Rf6) 38. Kg2 {[%emt 0:00:07]} Re5 {[%emt 0:00:38]} 39. Nd6 {[%emt 0:00:33]} Re7 {[%emt 0:01:07] [#]} (39... Rde1 {was worth a try.} 40. Nxf7 (40. Rxc6 Bxd6 41. cxd6 Rd1 $18) (40. Rxf7 Re8 $18) 40... R5e4) 40. Rb4 {[%emt 0:01:00] Weighted Error Value: White=0.20 (precise) /Black=0.39.  Mistake:       	White=3     	Black=8      Inaccurate:     	White=1     	Black=2      OK:         	White=10    	Black=6      Best:        	White=3     	Black=2} 1-0

[Event "45th FIDE Olympiad 2024"]
[Site "Budapest"]
[Date "2024.09.15"]
[Round "5.51"]
[White "Nascimento, Admilton De Ceita Do"]
[Black "Adeshole Beckley, Brian"]
[Result "1/2-1/2"]
[ECO "E01"]
[WhiteElo "1908"]
[BlackElo "1814"]
[PlyCount "97"]
[EventDate "2024.09.05"]
[EventType "team-tourn"]
[EventCountry "HUN"]
[WhiteTeam "Sao Tome and Principe"]
[BlackTeam "Sierra Leone"]
[WhiteTeamCountry "SAO"]
[BlackTeamCountry "SIE"]
[TimeControl "40/5400+30:1800+30"]

1. d4 Nf6 2. c4 c6 3. Nf3 d5 4. g3 e6 5. cxd5 exd5 6. Bg2 Bb4+ 7. Nbd2 O-O 8. O-O Re8 9. a3 Bd6 10. Nb1 Bf5 11. Nc3 Nbd7 12. Bg5 h6 13. Be3 Qe7 14. Re1 Ne4 15. Nh4 Nxc3 16. bxc3 Bh7 17. Qb3 Nb6 18. a4 Nc4 19. Bc1 b6 20. Bf3 Qf6 21. Bg4 Re7 22. Ng2 Rae8 23. Ne3 Nxe3 24. Bxe3 Be4 25. Rac1 g6 26. Bh3 h5 27. Qb2 g5 28. Qd2 Qg6 29. Bxg5 f6 30. Bf4 Bxf4 31. Qxf4 Qg5 32. Qd6 h4 33. e3 hxg3 34. hxg3 Qh5 35. Bg2 Rh7 36. f3 Bxf3 37. Rc2 Bxg2 38. Rxg2 Qf5 39. Qxc6 Ree7 40. c4 dxc4 41. Qxc4+ Kg7 42. g4 Qf3 43. g5 f5 44. d5 Re4 45. Qc3+ Kg8 46. Qc8+ Kg7 47. g6 Rg4 48. Qd7+ Kxg6 49. Qe8+ 1/2-1/2

[Event "45th FIDE Olympiad 2024"]
[Site "Budapest"]
[Date "2024.09.15"]
[Round "5.52"]
[White "Ivic, Velimir"]
[Black "Di Berardino, Diego Rafael"]
[Result "1/2-1/2"]
[ECO "C11"]
[WhiteElo "2599"]
[BlackElo "2472"]
[Annotator "TA"]
[PlyCount "129"]
[EventDate "2024.09.05"]
[EventType "team-tourn"]
[EventCountry "HUN"]
[SourceTitle "playchess.com"]
[Source "ChessBase"]
[SourceQuality "1"]
[WhiteTeam "Serbia"]
[BlackTeam "Brazil"]
[WhiteTeamCountry "SRB"]
[BlackTeamCountry "BRA"]
[TimeControl "40/5400+30:1800+30"]

{[%evp 13,129,0,29,17,13,16,9,16,32,0,0,0,10,0,0,0,0,-158,-168,-164,-158,-135,-157,-164,-183,-216,-210,-221,-143,-145,-141,-143,-131,-118,-134,-132,-135,-120,-130,-136,-111,-139,-140,-139,-143,-139,-138,-131,-109,-121,-139,-111,-70,-71,-62,-67,-35,-51,-48,-54,-54,-33,-51,-40,-45,-66,-8,-33,-8,-8,0,0,0,-8,-8,-10,-11,-11,-8,-10,0,-8,-8,-8,0,0,0,0,0,0,0,0,0,0,0,0,0,0,0,0,0,0,0,0,0,0,0,0,0,0,0,0,0,0,0,0,0,0]} 1. e4 {[%emt 0:00:18]} e6 {[%emt 0:00:28]} 2. d4 {[%emt 0:00:13]} d5 {[%emt 0:00:04]} 3. Nc3 {[%emt 0:00:17]} Nf6 {[%emt 0:00:35]} 4. e5 {[%emt 0:00:22]} Nfd7 {[%emt 0:00:04]} 5. f4 {[%emt 0:00:12]} c5 {[%emt 0:00:04]} 6. Nf3 {[%emt 0:00:07]} Nc6 {[%emt 0:00:04]} 7. Be3 {[%emt 0:00:14]} a6 {[%emt 0:00:37]} 8. Ne2 {[%emt 0:02:10]} Qb6 {[%emt 0:01:54]} 9. Qc1 {[%emt 0:00:10]} Be7 {[%emt 0:01:40]} 10. c3 {[%emt 0:00:37]} f6 {[%emt 0:04:40]} 11. h4 {[%emt 0:01:25]} O-O {[%emt 0:00:31]} 12. h5 {[%emt 0:00:44]} h6 {[%emt 0:02:07]} 13. Rh3 {[%emt 0:00:36]} Rf7 {[%emt 0:03:50]} 14. Qc2 {[%emt 0:17:40]} cxd4 {[%emt 0:14:48]} 15. Bxd4 {[%emt 0:19:49]} ({White has to play} 15. cxd4 $11 fxe5 16. fxe5) 15... Qc7 $1 $17 {[%emt 0:13:49]} 16. exf6 {[%emt 0:10:02]} Nxd4 {[%emt 0:02:16]} 17. Nexd4 {[%emt 0:02:08]} Rxf6 {[%emt 0:02:32]} 18. f5 {[%emt 0:01:24]} Nc5 {[%emt 0:08:55]} 19. Nh4 {[%emt 0:16:14]} Rf7 $1 {[%emt 0:13:35]} 20. Ndf3 {[%emt 0:04:27]} e5 {[%emt 0:08:22]} 21. g4 {[%emt 0:01:55]} e4 {[%emt 0:00:15]} 22. Nd4 {[%emt 0:01:55]} Qf4 $1 {[%emt 0:01:22]} 23. Ng6 {[%emt 0:03:42] Inhibits Nd3+.} Qxg4 {[%emt 0:03:24] Hoping for ...Nd3+.} 24. Qh2 {[%emt 0:03:49] [#] Nxe7+ would now be deadly.} Nd3+ $1 {[%emt 0:01:56]} (24... Bxf5 $2 25. Rg3 Bd6 26. Rxg4 Bxh2 27. Nxf5 $18) 25. Bxd3 {[%emt 0:00:54]} exd3 {[%emt 0:00:05]} 26. Re3 {[%emt 0:01:28] [#] Prevents Qe4.} d2+ $1 {[%emt 0:01:18]} 27. Qxd2 {[%emt 0:07:05]} Bh4+ {[%emt 0:03:55]} 28. Nxh4 {[%emt 0:00:41]} Qxh4+ {[%emt 0:00:12]} 29. Qf2 {[%emt 0:00:47]} Qh1+ {[%emt 0:02:14]} (29... Qxh5 30. Qf3 (30. Re8+ Kh7 $17) 30... Qxf3 31. Rxf3) (29... Qxf2+ 30. Kxf2 Bxf5 31. Re5 $17) 30. Qf1 {[%emt 0:00:01]} Qxf1+ {[%emt 0:04:25]} 31. Kxf1 {[%emt 0:00:01]} Bxf5 {[%emt 0:00:08]} 32. Re5 {[%emt 0:00:43][%cal Of1g1]} Be4+ {[%emt 0:01:04]} 33. Ke2 $1 {[%emt 0:00:02]} Rd8 {[%emt 0:03:59]} 34. Rg1 {[%emt 0:00:16]} Kh7 {[%emt 0:00:27]} 35. Ke3 {[%emt 0:01:03][%cal Oc3c4]} Rdd7 $1 {[%emt 0:01:07]} 36. a4 {[%emt 0:03:47]} Rde7 {[%emt 0:00:40]} 37. Rxe7 {[%emt 0:00:30]} Rxe7 $15 {[%emt 0:00:04][%mdl 4096] Endgame. KRB-KRN} 38. Kf4 {[%emt 0:00:03]} a5 {[%emt 0:00:32]} 39. Re1 {[%emt 0:01:24][%cal Oc3c4]} Kg8 {[%emt 0:00:56]} ({Black should try} 39... g6 $15 40. hxg6+ Kxg6) 40. c4 {[%emt 0:00:39]} Kf8 {[%emt 0:00:52]} 41. c5 {[%emt 0:03:14] The position is equal.} Rf7+ {[%emt 0:09:40]} 42. Ke5 {[%emt 0:00:50]} Ke7 {[%emt 0:01:40]} 43. Re3 {[%emt 0:20:55]} Kd7 {[%emt 0:03:03]} 44. Rb3 {[%emt 0:00:45]} Re7+ {[%emt 0:00:29]} 45. Kf4 {[%emt 0:00:01]} Kc7 {[%emt 0:00:25]} 46. Rb6 {[%emt 0:01:15]} Bg2 {[%emt 0:08:34] And now ...Re4+ would win.} 47. Ne6+ {[%emt 0:00:16]} Kb8 {[%emt 0:00:17] aiming for ...Bh3.} 48. c6 {[%emt 0:01:08]} d4 {[%emt 0:01:13]} 49. Nxd4 {[%emt 0:05:49]} Re4+ {[%emt 0:08:24]} 50. Kg3 {[%emt 0:00:01]} Rxd4 {[%emt 0:00:06]} 51. Rxb7+ {[%emt 0:00:04]} Kc8 {[%emt 0:00:09]} 52. Kxg2 {[%emt 0:00:04]} Rxa4 $11 {[%emt 0:00:03] KR-KR} 53. Kg3 {[%emt 0:00:47]} Ra1 {[%emt 0:00:43]} 54. Kf4 {[%emt 0:01:39]} (54. Rxg7 {is a self mate.} Rg1+ 55. Kf4 Rxg7 56. Ke5 a4 57. Kd4 Rg3 58. Kd5 Kc7 59. Ke5 Kxc6 60. Kf6 Rb3 (60... Rf3+ {leads to mate.} 61. Kg6 Kd6 62. Kh7 Ke6 63. Kg7 Rg3+ 64. Kh7 Kf7 65. Kh8 Rb3 66. Kh7 Rb8 67. Kxh6 Rb5 68. b3 axb3 69. Kh7 Rxh5#) 61. Ke5 Rxb2 62. Kf4 a3 63. Kf5 a2 64. Kf6 a1=Q (64... a1=B 65. Kg7 Rg2+ 66. Kxh6 Kd6 67. Kh7 Ke6 68. Kh6 Bg7+ 69. Kh7 Kf7 70. h6 Rg3 71. hxg7 Rh3#) 65. Kf5 Qf1+ 66. Ke4 Qf2 67. Kd3 Kd5 68. Kc3 Qd4#) 54... Rh1 {[%emt 0:00:48]} 55. Ke5 {[%emt 0:00:43]} Rxh5+ {[%emt 0:00:32]} 56. Kd6 {[%emt 0:00:01][%cal Ob7f7] Intending Rf7! and mate.} Rh4 {[%emt 0:00:14]} 57. Rc7+ {[%emt 0:00:50]} (57. Rxg7 $5 Rd4+ $8 58. Kc5 $11) 57... Kb8 {[%emt 0:01:18] ( -> ...Rd4+)} 58. Rb7+ {[%emt 0:00:29]} (58. Rxg7 $5 Rd4+ $8 59. Kc5 $11) 58... Kc8 {[%emt 0:00:03]} 59. Rxg7 {[%emt 0:00:34][%cal Rg7g8]} (59. Ra7 $5 Rd4+ $8 60. Kc5 $11) 59... Rd4+ {[%emt 0:00:04]} 60. Kc5 {[%emt 0:00:04]} Rb4 {[%emt 0:00:11]} 61. Rg2 {[%emt 0:00:51]} Kc7 {[%emt 0:00:44]} 62. Rg7+ {[%emt 0:00:33]} Kc8 {[%emt 0:00:04]} 63. Rh7 {[%emt 0:00:33]} Rxb2 {[%emt 0:00:10]} 64. Rh8+ {[%emt 0:00:15]} (64. Kd6 $5 Rd2+ $8 65. Kc5 $11) 64... Kc7 {[%emt 0:00:04]} 65. Rh7+ {[%emt 0:00:02] And White is the lucky defender.   Weighted Error Value: White=0.07 (flawless) /Black=0.06 (flawless) .  Mistake:       	White=1     	Black=1      Inaccurate:     	White=1     	Black=3      OK:         	White=18    	Black=25     Best:        	White=10    	Black=9      Strong:       	White=1     	Black=4} 1/2-1/2

[Event "45th FIDE Olympiad 2024"]
[Site "Budapest"]
[Date "2024.09.15"]
[Round "5.52"]
[White "Moses, Ina Ebenezer Conteh"]
[Black "Lima, Osvaldo Dos Santos"]
[Result "0-1"]
[ECO "B06"]
[WhiteElo "1631"]
[BlackElo "1903"]
[PlyCount "112"]
[EventDate "2024.09.05"]
[EventType "team-tourn"]
[EventCountry "HUN"]
[WhiteTeam "Sierra Leone"]
[BlackTeam "Sao Tome and Principe"]
[WhiteTeamCountry "SIE"]
[BlackTeamCountry "SAO"]
[TimeControl "40/5400+30:1800+30"]

1. e4 g6 2. d4 Bg7 3. Nf3 d6 4. Bd3 Bg4 5. Nbd2 Nc6 6. c3 Nf6 7. h3 Bd7 8. b4 e6 9. O-O O-O 10. Re1 e5 11. b5 Na5 12. dxe5 dxe5 13. Nxe5 Be6 14. Ndf3 h6 15. Bb2 Nh5 16. Qc2 Qd6 17. c4 b6 18. Rad1 Qe7 19. Bc3 Nb7 20. Nc6 Qe8 21. a4 Nf4 22. Bf1 Nc5 23. Bxg7 Kxg7 24. Qd2 g5 25. h4 f6 26. e5 Qf7 27. exf6+ Qxf6 28. Qd4 Bg4 29. Qxf6+ Kxf6 30. hxg5+ hxg5 31. Re7 Bxf3 32. gxf3 Nfe6 33. Bh3 Nf4 34. Bg4 Rf7 35. Rxf7+ Kxf7 36. Re1 a6 37. Re7+ Kf6 38. Rxc7 axb5 39. axb5 Ra1+ 40. Kh2 Ncd3 41. Nd4 Rf1 42. Rc6+ Ke5 43. Nf5 Rxf2+ 44. Kh1 Rg2 45. Re6+ Nxe6 46. Kxg2 Nb2 47. Ne3 Nf4+ 48. Kf2 Kd4 49. Bd7 Nbd3+ 50. Kg3 Kxe3 51. Kg4 Ne5+ 52. Kxg5 Nxd7 53. Kg4 Ne5+ 54. Kf5 Nxc4 55. Kf6 Kxf3 56. Ke7 Ke4 {0-} 0-1

[Event "45th FIDE Olympiad 2024"]
[Site "Budapest"]
[Date "2024.09.15"]
[Round "5.53"]
[White "Martirosyan, Haik M."]
[Black "Grandelius, Nils"]
[Result "1/2-1/2"]
[ECO "D17"]
[WhiteElo "2667"]
[BlackElo "2653"]
[Annotator "TA"]
[PlyCount "38"]
[EventDate "2024.09.05"]
[EventType "team-tourn"]
[EventCountry "HUN"]
[SourceTitle "playchess.com"]
[Source "ChessBase"]
[SourceQuality "1"]
[WhiteTeam "Armenia"]
[BlackTeam "Sweden"]
[WhiteTeamCountry "ARM"]
[BlackTeamCountry "SWE"]
[TimeControl "40/5400+30:1800+30"]

{[%evp 19,38,23,28,0,22,0,0,6,11,0,23,8,7,0,0,0,0,7,5,0,0]} 1. d4 {[%emt 0:00:25]} d5 {[%emt 0:00:42]} 2. c4 {[%emt 0:00:14]} c6 {[%emt 0:00:24]} 3. Nf3 {[%emt 0:00:13]} Nf6 {[%emt 0:00:12]} 4. Nc3 {[%emt 0:00:07]} dxc4 {[%emt 0:00:57]} 5. a4 {[%emt 0:00:12]} Bf5 {[%emt 0:00:18]} 6. Ne5 {[%emt 0:02:18]} Nbd7 {[%emt 0:01:00]} 7. Nxc4 {[%emt 0:00:15]} Qc7 {[%emt 0:00:09]} 8. g3 {[%emt 0:01:25]} e5 {[%emt 0:00:50]} 9. dxe5 {[%emt 0:00:20]} Nxe5 {[%emt 0:00:08]} 10. Bf4 {[%emt 0:00:12]} Nfd7 {[%emt 0:00:08]} 11. Qc1 {[%emt 0:02:03] [#] Bxe5 is the strong threat.} f6 {[%emt 0:02:04][%cal Bf7f6,Bf6e5][%mdl 32]} 12. Bg2 {[%emt 0:02:14]} Be6 {[%emt 0:00:34]} 13. Nxe5 {[%emt 0:00:06]} fxe5 {[%emt 0:00:05]} 14. Be3 {[%emt 0:00:05]} Nc5 {[%emt 0:00:12]} 15. Qc2 {[%emt 0:04:21]} Bb3 {[%emt 0:00:27] The position is equal.} 16. Qf5 {[%emt 0:04:19]} Be6 {[%emt 0:00:23]} 17. Qc2 {[%emt 0:02:50]} Bb3 {[%emt 0:00:55]} 18. Qb1 {[%emt 0:00:05]} Bf7 {[%emt 0:08:20]} 19. Qc2 {[%emt 0:23:21]} Bb3 {[%emt 0:06:13] A rather calm draw.   Weighted Error Value: White=0.07 (flawless) /Black=0.00 (flawless) .  OK:         	White=4     	Black=7      Best:        	---       	Black=1} 1/2-1/2

[Event "45th FIDE Olympiad 2024"]
[Site "Budapest"]
[Date "2024.09.15"]
[Round "5.53"]
[White "Ayyad, Husain"]
[Black "Misambo, .J. Kilasa"]
[Result "1-0"]
[ECO "B07"]
[WhiteElo "2129"]
[BlackElo "1959"]
[PlyCount "101"]
[EventDate "2024.09.05"]
[EventType "team-tourn"]
[EventCountry "HUN"]
[WhiteTeam "Bahrain"]
[BlackTeam "Tanzania"]
[WhiteTeamCountry "BHN"]
[BlackTeamCountry "TAN"]
[TimeControl "40/5400+30:1800+30"]

1. e4 d6 2. d4 Nf6 3. Nc3 g6 4. Bg5 Bg7 5. f3 c6 6. Qd2 h6 7. Be3 Nbd7 8. O-O-O Qa5 9. Kb1 b5 10. Nh3 Ba6 11. e5 dxe5 12. dxe5 Nxe5 13. Nxb5 Qxd2 14. Nc7+ Kd8 15. Ne6+ fxe6 16. Rxd2+ Ke8 17. Bxa6 Kf7 18. c4 Rab8 19. Re1 Ned7 20. Red1 Rhd8 21. b3 g5 22. Kc2 Ke8 23. a4 Nb6 24. Rxd8+ Rxd8 25. Rxd8+ Kxd8 26. a5 Kc7 27. axb6+ axb6 28. b4 Nd7 29. b5 c5 30. Nf2 Be5 31. h3 Bg7 32. Nd3 Nf8 33. Bf2 Nd7 34. Kd2 e5 35. Bg3 e6 36. Nf2 Kb8 37. Ne4 Kc7 38. h4 gxh4 39. Bxh4 Nb8 40. Be7 Nxa6 41. bxa6 Kb8 42. Bf6 Bf8 43. Bxe5+ Ka7 44. g4 Kxa6 45. Kc3 b5 46. Bd6 Bg7+ 47. Kb3 bxc4+ 48. Kxc4 Kb6 49. Ng3 Kc6 50. Bxc5 Kd7 51. Nh5 1-0